[Event "Titled Tuesday Blitz March 28 Late 2023"]
[White "Vlassov, Nikolai"]
[Black "Rosenberg, Evan S"]
[WhiteFideId "4103360"]
[BlackFideId "2019299"]
[WhiteElo "2324"]
[BlackElo "2344"]
[Result "1-0"]
[Round "02"]
[TimeControl "180+2"]
[Date "2023.03.28"]
[WhiteClock "0:00:06"]
[BlackClock "0:00:06"]

1. e4 {[%clk 0:02:23]}  e5 {[%clk 0:02:58]} 2. Bc4 {[%clk 0:02:22]}  Nf6 {[%clk 0:02:58]} 3. d3 {[%clk 0:02:22]}  Nc6 {[%clk 0:02:58]} 4. Nf3 {[%clk 0:02:23]}  Bc5 {[%clk 0:02:54]} 5. Bg5 {[%clk 0:02:22]}  d6 {[%clk 0:02:52]} 6. Nc3 {[%clk 0:02:22]}  Be6 {[%clk 0:02:51]} 7. Nd2 {[%clk 0:02:20]}  Na5 {[%clk 0:02:39]} 8. Nd5 {[%clk 0:02:11]}  Bxd5 {[%clk 0:02:33]} 9. exd5 {[%clk 0:02:06]}  Nxc4 {[%clk 0:02:30]} 10. dxc4 {[%clk 0:02:02]}  h6 {[%clk 0:02:28]} 11. Bh4 {[%clk 0:01:55]}  a5 {[%clk 0:02:27]} 12. Qf3 {[%clk 0:01:51]}  g5 {[%clk 0:02:22]} 13. Bg3 {[%clk 0:01:50]}  h5 {[%clk 0:02:04]} 14. h4 {[%clk 0:01:48]}  g4 {[%clk 0:02:02]} 15. Qf5 {[%clk 0:01:47]}  Rh6 {[%clk 0:01:57]} 16. O-O-O {[%clk 0:01:45]}  Qd7 {[%clk 0:01:57]} 17. Qd3 {[%clk 0:01:30]}  O-O-O {[%clk 0:01:53]} 18. Nb3 {[%clk 0:01:08]}  Bb6 {[%clk 0:01:48]} 19. c5 {[%clk 0:01:06]}  Bxc5 {[%clk 0:01:29]} 20. Nxc5 {[%clk 0:01:02]}  dxc5 {[%clk 0:01:30]} 21. Bxe5 {[%clk 0:01:02]}  Kb8 {[%clk 0:00:58]} 22. Qe3 {[%clk 0:00:47]}  Rg6 {[%clk 0:00:56]} 23. Qxc5 {[%clk 0:00:47]}  Ne4 {[%clk 0:00:49]} 24. Qe3 {[%clk 0:00:38]}  Qf5 {[%clk 0:00:45]} 25. f4 {[%clk 0:00:19]}  gxf3 {[%clk 0:00:43]} 26. gxf3 {[%clk 0:00:20]}  Nd6 {[%clk 0:00:39]} 27. Bh2 {[%clk 0:00:15]}  Rg2 {[%clk 0:00:37]} 28. Qc3 {[%clk 0:00:12]}  Nb5 {[%clk 0:00:35]} 29. Qc5 {[%clk 0:00:11]}  Rxh2 {[%clk 0:00:28]} 30. Rxh2 {[%clk 0:00:10]}  Qf4+ {[%clk 0:00:19]} 31. Rdd2 {[%clk 0:00:10]}  Nd6 {[%clk 0:00:18]} 32. b3 {[%clk 0:00:10]}  b6 {[%clk 0:00:18]} 33. Qf2 {[%clk 0:00:08]}  Re8 {[%clk 0:00:18]} 34. Kb2 {[%clk 0:00:08]}  Nb5 {[%clk 0:00:15]} 35. a4 {[%clk 0:00:07]}  Nd6 {[%clk 0:00:14]} 36. Rg2 {[%clk 0:00:07]}  Qf6+ {[%clk 0:00:12]} 37. Qd4 {[%clk 0:00:07]}  Qxf3 {[%clk 0:00:12]} 38. Rgf2 {[%clk 0:00:07]}  Qg3 {[%clk 0:00:12]} 39. Qf4 {[%clk 0:00:06]}  Qxf4 {[%clk 0:00:11]} 40. Rxf4 {[%clk 0:00:06]}  Re1 {[%clk 0:00:11]} 41. Rg2 {[%clk 0:00:06]}  Rd1 {[%clk 0:00:10]} 42. Rg5 {[%clk 0:00:06]}  Re1 {[%clk 0:00:08]} 43. Rxh5 {[%clk 0:00:06]}  Re2 {[%clk 0:00:09]} 44. Rg5 {[%clk 0:00:06]}  Ne4 {[%clk 0:00:09]} 45. Rg8+ {[%clk 0:00:06]}  Kb7 {[%clk 0:00:09]} 46. Rxf7 {[%clk 0:00:06]}  Nc5 {[%clk 0:00:09]} 47. d6 {[%clk 0:00:06]}  Nd3+ {[%clk 0:00:07]} 48. Kc3 {[%clk 0:00:06]}  Ne5 {[%clk 0:00:06]} 49. Rxc7+ {[%clk 0:00:06]} 1-0


[Site "https://www.chess.com"]

[Event "Titled Tuesday Blitz March 28 Late 2023"]
[White "Spata, German"]
[Black "micke12a"]
[WhiteFideId "113026"]
[WhiteElo "2238"]
[BlackElo "2333"]
[Result "1-0"]
[Round "02"]
[TimeControl "180+2"]
[Date "2023.03.28"]
[WhiteClock "0:00:19"]
[BlackClock "0:00:13"]

1. Nf3 {[%clk 0:02:51]}  Nf6 {[%clk 0:02:59]} 2. b3 {[%clk 0:02:25]}  g6 {[%clk 0:02:54]} 3. Bb2 {[%clk 0:02:25]}  Bg7 {[%clk 0:02:54]} 4. e3 {[%clk 0:02:25]}  c5 {[%clk 0:02:51]} 5. c4 {[%clk 0:02:25]}  O-O {[%clk 0:02:51]} 6. Be2 {[%clk 0:02:24]}  Nc6 {[%clk 0:02:51]} 7. O-O {[%clk 0:02:21]}  b6 {[%clk 0:02:51]} 8. d4 {[%clk 0:02:20]}  cxd4 {[%clk 0:02:50]} 9. Nxd4 {[%clk 0:02:21]}  Bb7 {[%clk 0:02:49]} 10. Nc3 {[%clk 0:02:21]}  Nxd4 {[%clk 0:02:45]} 11. Qxd4 {[%clk 0:02:21]}  Ne4 {[%clk 0:02:41]} 12. Qd3 {[%clk 0:02:17]}  Nxc3 {[%clk 0:02:39]} 13. Bxc3 {[%clk 0:02:18]}  d6 {[%clk 0:02:39]} 14. Rfd1 {[%clk 0:02:11]}  Qc7 {[%clk 0:02:37]} 15. Rac1 {[%clk 0:02:09]}  a5 {[%clk 0:02:36]} 16. Bxg7 {[%clk 0:02:05]}  Kxg7 {[%clk 0:02:36]} 17. h4 {[%clk 0:02:05]}  h5 {[%clk 0:02:32]} 18. Qd4+ {[%clk 0:02:05]}  f6 {[%clk 0:02:27]} 19. Qf4 {[%clk 0:02:04]}  Qc5 {[%clk 0:02:20]} 20. a4 {[%clk 0:01:50]}  Rad8 {[%clk 0:02:15]} 21. Bf3 {[%clk 0:01:48]}  Bxf3 {[%clk 0:02:14]} 22. Qxf3 {[%clk 0:01:48]}  e6 {[%clk 0:02:10]} 23. Rd3 {[%clk 0:01:40]}  Rf7 {[%clk 0:02:08]} 24. Rcd1 {[%clk 0:01:39]}  Rfd7 {[%clk 0:02:07]} 25. e4 {[%clk 0:01:38]}  Qc6 {[%clk 0:01:56]} 26. Qf4 {[%clk 0:01:34]}  Qc5 {[%clk 0:01:50]} 27. g3 {[%clk 0:01:32]}  Qc6 {[%clk 0:01:39]} 28. Qe3 {[%clk 0:01:30]}  Qc5 {[%clk 0:01:30]} 29. Rd4 {[%clk 0:01:27]}  Qc6 {[%clk 0:01:05]} 30. Qd3 {[%clk 0:01:27]}  Qc5 {[%clk 0:01:01]} 31. Rd2 {[%clk 0:01:24]}  Qc6 {[%clk 0:01:01]} 32. Kg2 {[%clk 0:01:20]}  Qc5 {[%clk 0:01:01]} 33. Kh2 {[%clk 0:01:18]}  Qc6 {[%clk 0:01:00]} 34. f4 {[%clk 0:01:18]}  e5 {[%clk 0:00:52]} 35. fxe5 {[%clk 0:01:10]}  fxe5 {[%clk 0:00:50]} 36. Rd5 {[%clk 0:01:10]}  Qc7 {[%clk 0:00:47]} 37. Qe3 {[%clk 0:01:07]}  Rf7 {[%clk 0:00:37]} 38. Rf2 {[%clk 0:01:04]}  Rxf2+ {[%clk 0:00:36]} 39. Qxf2 {[%clk 0:01:04]}  Rf8 {[%clk 0:00:36]} 40. Qe3 {[%clk 0:00:59]}  Qc6 {[%clk 0:00:21]} 41. Rb5 {[%clk 0:00:56]}  Rb8 {[%clk 0:00:21]} 42. Qd3 {[%clk 0:00:56]}  Kf6 {[%clk 0:00:20]} 43. Rd5 {[%clk 0:00:52]}  Rd8 {[%clk 0:00:19]} 44. Qf1+ {[%clk 0:00:50]}  Kg7 {[%clk 0:00:20]} 45. Qd1 {[%clk 0:00:48]}  Rd7 {[%clk 0:00:19]} 46. Qd3 {[%clk 0:00:47]}  Rd8 {[%clk 0:00:18]} 47. Qe3 {[%clk 0:00:44]}  Qc7 {[%clk 0:00:18]} 48. Qd3 {[%clk 0:00:43]}  Qb7 {[%clk 0:00:18]} 49. Qd2 {[%clk 0:00:28]}  Qc6 {[%clk 0:00:18]} 50. Qd3 {[%clk 0:00:26]}  Qc7 {[%clk 0:00:18]} 51. Kg2 {[%clk 0:00:25]}  Qc6 {[%clk 0:00:18]} 52. Qe3 {[%clk 0:00:26]}  Qc7 {[%clk 0:00:18]} 53. Rb5 {[%clk 0:00:26]}  Rc8 {[%clk 0:00:18]} 54. Qxb6 {[%clk 0:00:25]}  Qf7 {[%clk 0:00:16]} 55. Qf2 {[%clk 0:00:23]}  Qc7 {[%clk 0:00:13]} 56. Rd5 {[%clk 0:00:22]}  Qc6 {[%clk 0:00:13]} 57. Qd2 {[%clk 0:00:21]}  Rb8 {[%clk 0:00:13]} 58. Qd3 {[%clk 0:00:20]}  Rb4 {[%clk 0:00:12]} 59. Rxd6 {[%clk 0:00:19]}  Qc5 {[%clk 0:00:12]} 60. Rd7+ {[%clk 0:00:19]}  Kh6 {[%clk 0:00:13]} 61. Qd2+ {[%clk 0:00:19]} 1-0


[Site "https://www.chess.com"]

[Event "Titled Tuesday Blitz March 28 Late 2023"]
[White "Taboas Rodriguez, Daniel"]
[Black "Zampronha, Wladimir Camilo"]
[WhiteFideId "2208466"]
[BlackFideId "2103087"]
[WhiteElo "2365"]
[BlackElo "2176"]
[Result "1-0"]
[Round "02"]
[TimeControl "180+2"]
[Date "2023.03.28"]
[WhiteClock "0:01:15"]
[BlackClock "0:00:17"]

1. d4 {[%clk 0:03:00]}  Nf6 {[%clk 0:02:59]} 2. Nf3 {[%clk 0:03:00]}  e6 {[%clk 0:02:59]} 3. c4 {[%clk 0:03:01]}  b6 {[%clk 0:02:58]} 4. Nc3 {[%clk 0:03:00]}  Bb7 {[%clk 0:02:58]} 5. Bg5 {[%clk 0:03:00]}  Bb4 {[%clk 0:02:56]} 6. Nd2 {[%clk 0:03:00]}  O-O {[%clk 0:02:45]} 7. f3 {[%clk 0:02:54]}  h6 {[%clk 0:02:44]} 8. Bh4 {[%clk 0:02:54]}  c5 {[%clk 0:02:43]} 9. dxc5 {[%clk 0:02:48]}  Bxc5 {[%clk 0:02:42]} 10. e4 {[%clk 0:02:49]}  Nc6 {[%clk 0:02:32]} 11. Nb3 {[%clk 0:02:49]}  Be7 {[%clk 0:02:28]} 12. Bf2 {[%clk 0:02:42]}  d5 {[%clk 0:02:23]} 13. cxd5 {[%clk 0:02:41]}  exd5 {[%clk 0:02:24]} 14. exd5 {[%clk 0:02:39]}  Nb4 {[%clk 0:02:24]} 15. Bc4 {[%clk 0:02:23]}  Nbxd5 {[%clk 0:02:16]} 16. Nxd5 {[%clk 0:02:23]}  Bxd5 {[%clk 0:02:14]} 17. Bxd5 {[%clk 0:02:22]}  Qxd5 {[%clk 0:02:14]} 18. O-O {[%clk 0:02:22]}  Rac8 {[%clk 0:01:59]} 19. Re1 {[%clk 0:02:19]}  Bb4 {[%clk 0:01:58]} 20. Qxd5 {[%clk 0:02:13]}  Nxd5 {[%clk 0:01:57]} 21. Re5 {[%clk 0:02:13]}  Rfd8 {[%clk 0:01:50]} 22. g3 {[%clk 0:02:07]}  Nf6 {[%clk 0:01:33]} 23. Re2 {[%clk 0:01:58]}  Rd7 {[%clk 0:01:30]} 24. a3 {[%clk 0:01:56]}  Bf8 {[%clk 0:01:28]} 25. Kg2 {[%clk 0:01:56]}  Rdc7 {[%clk 0:01:23]} 26. Rd1 {[%clk 0:01:54]}  Rc2 {[%clk 0:01:22]} 27. Rxc2 {[%clk 0:01:54]}  Rxc2 {[%clk 0:01:21]} 28. Rd2 {[%clk 0:01:55]}  Rxd2 {[%clk 0:01:21]} 29. Nxd2 {[%clk 0:01:55]}  Bd6 {[%clk 0:01:16]} 30. f4 {[%clk 0:01:56]}  Kf8 {[%clk 0:01:13]} 31. Kf3 {[%clk 0:01:56]}  Ke7 {[%clk 0:01:12]} 32. Bd4 {[%clk 0:01:56]}  Ne8 {[%clk 0:01:01]} 33. Ke4 {[%clk 0:01:53]}  Ke6 {[%clk 0:00:55]} 34. f5+ {[%clk 0:01:52]}  Kd7 {[%clk 0:00:55]} 35. Nf3 {[%clk 0:01:47]}  f6 {[%clk 0:00:52]} 36. g4 {[%clk 0:01:47]}  Nc7 {[%clk 0:00:48]} 37. h4 {[%clk 0:01:47]}  Nb5 {[%clk 0:00:47]} 38. Kd5 {[%clk 0:01:44]}  Nxd4 {[%clk 0:00:45]} 39. Nxd4 {[%clk 0:01:37]}  Be5 {[%clk 0:00:45]} 40. Ne6 {[%clk 0:01:33]}  Bxb2 {[%clk 0:00:43]} 41. a4 {[%clk 0:01:33]}  a6 {[%clk 0:00:30]} 42. Nxg7 {[%clk 0:01:33]}  b5 {[%clk 0:00:30]} 43. axb5 {[%clk 0:01:34]}  axb5 {[%clk 0:00:31]} 44. Kc5 {[%clk 0:01:34]}  Ke7 {[%clk 0:00:28]} 45. Ne6 {[%clk 0:01:29]}  Be5 {[%clk 0:00:24]} 46. Kxb5 {[%clk 0:01:25]}  Bg3 {[%clk 0:00:25]} 47. h5 {[%clk 0:01:23]}  Kd6 {[%clk 0:00:25]} 48. Kc4 {[%clk 0:01:17]}  Ke5 {[%clk 0:00:25]} 49. Kd3 {[%clk 0:01:18]}  Be1 {[%clk 0:00:23]} 50. Ke3 {[%clk 0:01:18]}  Ba5 {[%clk 0:00:22]} 51. Kf3 {[%clk 0:01:18]}  Bb4 {[%clk 0:00:20]} 52. Nd8 {[%clk 0:01:18]}  Ba3 {[%clk 0:00:19]} 53. Nf7+ {[%clk 0:01:18]}  Kd5 {[%clk 0:00:16]} 54. Nxh6 {[%clk 0:01:19]}  Kd6 {[%clk 0:00:17]} 55. Ng8 {[%clk 0:01:15]}  Bb2 {[%clk 0:00:17]} 56. h6 {[%clk 0:01:15]} 1-0


[Site "https://www.chess.com"]

[Event "Titled Tuesday Blitz March 28 Late 2023"]
[White "krucki03"]
[Black "Ronka, Erik"]
[BlackFideId "505080"]
[WhiteElo "2312"]
[BlackElo "2264"]
[Result "1-0"]
[Round "02"]
[TimeControl "180+2"]
[Date "2023.03.28"]
[WhiteClock "0:00:16"]
[BlackClock "0:00:16"]

1. e4 {[%clk 0:02:56]}  c5 {[%clk 0:02:59]} 2. Nf3 {[%clk 0:02:56]}  d6 {[%clk 0:03:00]} 3. d4 {[%clk 0:02:53]}  cxd4 {[%clk 0:03:01]} 4. Nxd4 {[%clk 0:02:53]}  Nf6 {[%clk 0:03:01]} 5. Nc3 {[%clk 0:02:53]}  g6 {[%clk 0:03:02]} 6. Be2 {[%clk 0:02:48]}  Bg7 {[%clk 0:03:02]} 7. O-O {[%clk 0:02:48]}  O-O {[%clk 0:03:03]} 8. Be3 {[%clk 0:02:48]}  Nc6 {[%clk 0:03:02]} 9. Nb3 {[%clk 0:02:48]}  Be6 {[%clk 0:03:00]} 10. f4 {[%clk 0:02:48]}  Na5 {[%clk 0:02:58]} 11. Kh1 {[%clk 0:02:45]}  Bc4 {[%clk 0:02:47]} 12. Nxa5 {[%clk 0:02:29]}  Bxe2 {[%clk 0:02:45]} 13. Qxe2 {[%clk 0:02:28]}  Qxa5 {[%clk 0:02:45]} 14. Bd4 {[%clk 0:02:24]}  e5 {[%clk 0:01:32]} 15. fxe5 {[%clk 0:02:22]}  dxe5 {[%clk 0:01:33]} 16. Be3 {[%clk 0:02:22]}  Rac8 {[%clk 0:01:34]} 17. Bg5 {[%clk 0:02:21]}  Rc6 {[%clk 0:01:25]} 18. Bxf6 {[%clk 0:02:20]}  Rxf6 {[%clk 0:01:16]} 19. Rxf6 {[%clk 0:02:18]}  Bxf6 {[%clk 0:01:17]} 20. Nd5 {[%clk 0:02:18]}  Bg7 {[%clk 0:01:17]} 21. c3 {[%clk 0:02:17]}  f5 {[%clk 0:01:09]} 22. b4 {[%clk 0:02:06]}  Qd8 {[%clk 0:01:05]} 23. c4 {[%clk 0:01:57]}  h6 {[%clk 0:01:04]} 24. h3 {[%clk 0:01:51]}  b6 {[%clk 0:01:04]} 25. a4 {[%clk 0:01:50]}  Qh4 {[%clk 0:01:01]} 26. Qe1 {[%clk 0:01:43]}  Qd8 {[%clk 0:00:53]} 27. a5 {[%clk 0:01:42]}  Kh8 {[%clk 0:00:50]} 28. axb6 {[%clk 0:01:41]}  axb6 {[%clk 0:00:51]} 29. Ra7 {[%clk 0:01:39]}  Qg5 {[%clk 0:00:30]} 30. c5 {[%clk 0:01:23]}  bxc5 {[%clk 0:00:29]} 31. bxc5 {[%clk 0:01:24]}  fxe4 {[%clk 0:00:23]} 32. c6 {[%clk 0:01:20]}  e3 {[%clk 0:00:17]} 33. Qxe3 {[%clk 0:01:13]}  Qd8 {[%clk 0:00:17]} 34. Qe4 {[%clk 0:01:11]}  Qb8 {[%clk 0:00:17]} 35. Rb7 {[%clk 0:01:07]}  Qd6 {[%clk 0:00:17]} 36. Rd7 {[%clk 0:01:06]}  Qxc6 {[%clk 0:00:15]} 37. Rc7 {[%clk 0:00:38]}  Qd6 {[%clk 0:00:14]} 38. Rc1 {[%clk 0:00:38]}  Rd8 {[%clk 0:00:13]} 39. Rd1 {[%clk 0:00:33]}  Qe6 {[%clk 0:00:13]} 40. Rd3 {[%clk 0:00:30]}  Kh7 {[%clk 0:00:13]} 41. h4 {[%clk 0:00:25]}  h5 {[%clk 0:00:12]} 42. Nf4 {[%clk 0:00:19]}  Qb6 {[%clk 0:00:07]} 43. Rxd8 {[%clk 0:00:18]}  Qxd8 {[%clk 0:00:07]} 44. Qxg6+ {[%clk 0:00:18]}  Kh8 {[%clk 0:00:08]} 45. Qxg7+ {[%clk 0:00:06]}  Kxg7 {[%clk 0:00:07]} 46. Ne6+ {[%clk 0:00:07]}  Kf6 {[%clk 0:00:08]} 47. Nxd8 {[%clk 0:00:08]}  Kf5 {[%clk 0:00:09]} 48. g3 {[%clk 0:00:08]}  Kg4 {[%clk 0:00:09]} 49. Kg2 {[%clk 0:00:09]}  e4 {[%clk 0:00:09]} 50. Nc6 {[%clk 0:00:09]}  e3 {[%clk 0:00:10]} 51. Nd4 {[%clk 0:00:10]}  e2 {[%clk 0:00:09]} 52. Nxe2 {[%clk 0:00:09]}  Kf5 {[%clk 0:00:10]} 53. Nf4 {[%clk 0:00:10]}  Kg4 {[%clk 0:00:11]} 54. Kh2 {[%clk 0:00:11]}  Kf3 {[%clk 0:00:11]} 55. Nxh5 {[%clk 0:00:11]}  Kf2 {[%clk 0:00:12]} 56. Nf4 {[%clk 0:00:12]}  Kf1 {[%clk 0:00:12]} 57. h5 {[%clk 0:00:13]}  Kf2 {[%clk 0:00:13]} 58. h6 {[%clk 0:00:14]}  Kf3 {[%clk 0:00:14]} 59. h7 {[%clk 0:00:15]}  Kg4 {[%clk 0:00:14]} 60. h8=Q {[%clk 0:00:16]}  Kf5 {[%clk 0:00:15]} 61. Qh5+ {[%clk 0:00:15]}  Ke4 {[%clk 0:00:15]} 62. Qd5+ {[%clk 0:00:15]}  Ke3 {[%clk 0:00:16]} 63. Qd3+ {[%clk 0:00:16]}  Kf2 {[%clk 0:00:16]} 64. Qe2# {[%clk 0:00:16]} 1-0


[Site "https://www.chess.com"]

[Event "Titled Tuesday Blitz March 28 Late 2023"]
[White "Onslow, Alfie"]
[Black "Toniutti, Ezio"]
[WhiteFideId "436976"]
[BlackFideId "113034"]
[WhiteElo "2114"]
[BlackElo "2215"]
[Result "1-0"]
[Round "02"]
[TimeControl "180+2"]
[Date "2023.03.28"]
[WhiteClock "0:00:05"]
[BlackClock "0:00:09"]

1. e4 {[%clk 0:03:00]}  e5 {[%clk 0:02:31]} 2. Bc4 {[%clk 0:02:59]}  Nf6 {[%clk 0:02:29]} 3. d3 {[%clk 0:02:59]}  Nc6 {[%clk 0:02:29]} 4. Nc3 {[%clk 0:02:59]}  Na5 {[%clk 0:02:29]} 5. Nf3 {[%clk 0:02:50]}  Nxc4 {[%clk 0:02:22]} 6. dxc4 {[%clk 0:02:51]}  d6 {[%clk 0:02:22]} 7. Qe2 {[%clk 0:02:48]}  Be7 {[%clk 0:02:21]} 8. Bg5 {[%clk 0:02:45]}  O-O {[%clk 0:02:19]} 9. O-O-O {[%clk 0:02:44]}  Bd7 {[%clk 0:02:18]} 10. h4 {[%clk 0:02:39]}  a6 {[%clk 0:02:07]} 11. Nd5 {[%clk 0:02:33]}  Nxd5 {[%clk 0:02:00]} 12. cxd5 {[%clk 0:02:26]}  f5 {[%clk 0:01:56]} 13. Kb1 {[%clk 0:02:15]}  fxe4 {[%clk 0:01:51]} 14. Qxe4 {[%clk 0:02:11]}  h6 {[%clk 0:01:50]} 15. Be3 {[%clk 0:02:02]}  Bf5 {[%clk 0:01:49]} 16. Qc4 {[%clk 0:02:01]}  b5 {[%clk 0:01:48]} 17. Qc6 {[%clk 0:01:49]}  Qc8 {[%clk 0:01:31]} 18. Nd2 {[%clk 0:01:43]}  b4 {[%clk 0:01:18]} 19. f3 {[%clk 0:01:35]}  a5 {[%clk 0:01:13]} 20. g4 {[%clk 0:01:34]}  Bd7 {[%clk 0:01:10]} 21. Qc4 {[%clk 0:01:32]}  Rb8 {[%clk 0:01:10]} 22. h5 {[%clk 0:01:13]}  a4 {[%clk 0:01:05]} 23. g5 {[%clk 0:01:08]}  Bxg5 {[%clk 0:00:50]} 24. Bxg5 {[%clk 0:01:08]}  hxg5 {[%clk 0:00:51]} 25. h6 {[%clk 0:01:07]}  Rf4 {[%clk 0:00:50]} 26. Qe2 {[%clk 0:00:51]}  Bf5 {[%clk 0:00:44]} 27. hxg7 {[%clk 0:00:45]}  Kxg7 {[%clk 0:00:41]} 28. Qg2 {[%clk 0:00:31]}  Qd8 {[%clk 0:00:28]} 29. Rh5 {[%clk 0:00:20]}  Kg6 {[%clk 0:00:20]} 30. Rdh1 {[%clk 0:00:19]}  Qf8 {[%clk 0:00:18]} 31. Qxg5+ {[%clk 0:00:10]}  Kf7 {[%clk 0:00:18]} 32. Rh6 {[%clk 0:00:08]}  Ke8 {[%clk 0:00:18]} 33. Rf6 {[%clk 0:00:07]}  Qe7 {[%clk 0:00:10]} 34. Rxf5 {[%clk 0:00:06]}  Rxf5 {[%clk 0:00:09]} 35. Qxf5 {[%clk 0:00:05]} 1-0


[Site "https://www.chess.com"]

[Event "Titled Tuesday Blitz March 28 Late 2023"]
[White "sebastianmarinp"]
[Black "Risteski, Emil"]
[BlackFideId "15005267"]
[WhiteElo "2302"]
[BlackElo "2251"]
[Result "0-1"]
[Round "02"]
[TimeControl "180+2"]
[Date "2023.03.28"]
[WhiteClock "0:01:35"]
[BlackClock "0:02:04"]

1. e4 {[%clk 0:03:00]}  d6 {[%clk 0:02:59]} 2. d4 {[%clk 0:03:00]}  Nf6 {[%clk 0:03:00]} 3. Nc3 {[%clk 0:03:00]}  e5 {[%clk 0:03:01]} 4. Nge2 {[%clk 0:02:59]}  Be7 {[%clk 0:03:00]} 5. h3 {[%clk 0:02:59]}  c6 {[%clk 0:02:59]} 6. a4 {[%clk 0:02:58]}  h5 {[%clk 0:02:55]} 7. g3 {[%clk 0:02:57]}  b6 {[%clk 0:02:54]} 8. Bg2 {[%clk 0:02:55]}  Bb7 {[%clk 0:02:54]} 9. O-O {[%clk 0:02:54]}  Nbd7 {[%clk 0:02:55]} 10. f4 {[%clk 0:02:52]}  Qc7 {[%clk 0:02:55]} 11. d5 {[%clk 0:02:43]}  cxd5 {[%clk 0:02:53]} 12. exd5 {[%clk 0:02:40]}  a6 {[%clk 0:02:48]} 13. Be3 {[%clk 0:02:34]}  exf4 {[%clk 0:02:34]} 14. Bxf4 {[%clk 0:02:26]}  Ne5 {[%clk 0:02:33]} 15. Nd4 {[%clk 0:02:20]}  g6 {[%clk 0:02:15]} 16. Bxe5 {[%clk 0:02:16]}  dxe5 {[%clk 0:02:15]} 17. Nc6 {[%clk 0:02:16]}  Bxc6 {[%clk 0:02:15]} 18. dxc6 {[%clk 0:02:15]}  O-O {[%clk 0:02:16]} 19. Rxf6 {[%clk 0:02:11]}  Bxf6 {[%clk 0:02:15]} 20. Nd5 {[%clk 0:02:11]}  Qd6 {[%clk 0:02:15]} 21. Nxb6 {[%clk 0:02:04]}  Qc5+ {[%clk 0:02:13]} 22. Kh2 {[%clk 0:01:58]}  Qxb6 {[%clk 0:02:12]} 23. Qd6 {[%clk 0:01:48]}  Bg7 {[%clk 0:02:07]} 24. b3 {[%clk 0:01:41]}  Qd4 {[%clk 0:02:05]} 25. Rd1 {[%clk 0:01:34]}  Qxd6 {[%clk 0:02:04]} 26. Rxd6 {[%clk 0:01:35]}  Rad8 {[%clk 0:02:04]} 0-1


[Site "https://www.chess.com"]

[Event "Titled Tuesday Blitz March 28 Late 2023"]
[White "Santos Flores, Alberto"]
[Black "Smith, Garrett L"]
[WhiteFideId "3601234"]
[BlackFideId "2024829"]
[WhiteElo "2235"]
[BlackElo "2300"]
[Result "0-1"]
[Round "02"]
[TimeControl "180+2"]
[Date "2023.03.28"]
[WhiteClock "0:00:16"]
[BlackClock "0:00:46"]

1. e4 {[%clk 0:03:00]}  c5 {[%clk 0:03:00]} 2. Nf3 {[%clk 0:03:00]}  Nc6 {[%clk 0:03:00]} 3. Nc3 {[%clk 0:03:00]}  e5 {[%clk 0:03:00]} 4. Bc4 {[%clk 0:03:00]}  Be7 {[%clk 0:03:00]} 5. d3 {[%clk 0:02:59]}  Nf6 {[%clk 0:03:00]} 6. Nd2 {[%clk 0:02:51]}  d6 {[%clk 0:02:57]} 7. Nf1 {[%clk 0:02:51]}  h6 {[%clk 0:02:55]} 8. Ne3 {[%clk 0:02:50]}  O-O {[%clk 0:02:53]} 9. Ned5 {[%clk 0:02:49]}  Be6 {[%clk 0:02:53]} 10. O-O {[%clk 0:02:48]}  Nd4 {[%clk 0:02:51]} 11. f4 {[%clk 0:02:46]}  Rb8 {[%clk 0:02:47]} 12. f5 {[%clk 0:02:44]}  Bxd5 {[%clk 0:02:46]} 13. Nxd5 {[%clk 0:02:44]}  b5 {[%clk 0:02:38]} 14. Nxf6+ {[%clk 0:02:44]}  Bxf6 {[%clk 0:02:38]} 15. Bd5 {[%clk 0:02:45]}  b4 {[%clk 0:02:33]} 16. g3 {[%clk 0:02:32]}  Kh7 {[%clk 0:02:23]} 17. h4 {[%clk 0:02:31]}  a5 {[%clk 0:02:15]} 18. Bd2 {[%clk 0:02:26]}  a4 {[%clk 0:02:14]} 19. c3 {[%clk 0:02:26]}  bxc3 {[%clk 0:02:13]} 20. bxc3 {[%clk 0:02:27]}  Nb5 {[%clk 0:02:12]} 21. Kg2 {[%clk 0:02:15]}  a3 {[%clk 0:02:09]} 22. Rb1 {[%clk 0:02:14]}  Nc7 {[%clk 0:02:08]} 23. Bc4 {[%clk 0:02:14]}  Rxb1 {[%clk 0:02:05]} 24. Qxb1 {[%clk 0:02:14]}  d5 {[%clk 0:02:06]} 25. exd5 {[%clk 0:02:12]}  Nxd5 {[%clk 0:02:07]} 26. Qb7 {[%clk 0:02:10]}  Nb6 {[%clk 0:01:59]} 27. Qe4 {[%clk 0:02:02]}  Qd6 {[%clk 0:01:48]} 28. Be3 {[%clk 0:01:54]}  Nxc4 {[%clk 0:01:38]} 29. Qxc4 {[%clk 0:01:54]}  Rd8 {[%clk 0:01:34]} 30. Rd1 {[%clk 0:01:14]}  Qc6+ {[%clk 0:01:31]} 31. Kf2 {[%clk 0:01:11]}  Rd5 {[%clk 0:01:29]} 32. Qb3 {[%clk 0:01:00]}  Qd7 {[%clk 0:01:26]} 33. c4 {[%clk 0:00:52]}  Qxf5+ {[%clk 0:01:23]} 34. Kg2 {[%clk 0:00:53]}  Rd7 {[%clk 0:01:16]} 35. Qxa3 {[%clk 0:00:52]}  e4 {[%clk 0:01:11]} 36. Rf1 {[%clk 0:00:41]}  Qe6 {[%clk 0:01:08]} 37. Qxc5 {[%clk 0:00:34]}  exd3 {[%clk 0:01:04]} 38. Rd1 {[%clk 0:00:30]}  Qe4+ {[%clk 0:01:00]} 39. Kf2 {[%clk 0:00:29]}  Bc3 {[%clk 0:00:54]} 40. a4 {[%clk 0:00:21]}  Bd4 {[%clk 0:00:51]} 41. Bxd4 {[%clk 0:00:20]}  Qe2+ {[%clk 0:00:51]} 42. Kg1 {[%clk 0:00:19]}  Qxd1+ {[%clk 0:00:51]} 43. Kg2 {[%clk 0:00:20]}  Qe2+ {[%clk 0:00:51]} 44. Kh3 {[%clk 0:00:17]}  Qe6+ {[%clk 0:00:46]} 45. Kg2 {[%clk 0:00:16]}  d2 {[%clk 0:00:46]} 0-1


[Site "https://www.chess.com"]